bitfinex/quotes_SOLUSD_20260214
["timestamp","ask_amount","ask_price","bid_price","bid_amount"]
[1771081101603,11.94848374,87.286,87.251,0.45506432]
[1771081103200,11.94848374,87.286,87.253,0.45506432]
[1771081103592,11.94848374,87.286,87.26,7.34643519]
[1771081104606,11.94848374,87.286,87.252,11.46105533]
[1771081104801,11.94848374,87.286,87.25,7.34643519]
[1771081105100,11.94848374,87.286,87.25,69.24643519]
[1771081105486,11.45627944,87.289,87.261,0.45506432]
[1771081106203,0.49189277,87.288,87.261,0.45506432]
[1771081106888,0.49189277,87.286,87.25,61.9]
[1771081107102,0.49189277,87.286,87.251,0.45506432]
[1771081107902,11.4558869,87.292,87.261,0.45506432]
[1771081108604,0.49189277,87.291,87.261,0.45506432]
[1771081109108,11.94795875,87.29,87.262,11.45974192]
[1771081109603,0.49189277,87.289,87.262,11.45974192]
[1771081109807,0.49189277,87.289,87.263,0.45506432]
[1771081110012,11.45606598,87.29,87.263,0.45506432]
[1771081110900,11.94795875,87.29,87.263,0.45506432]
[1771081111109,0.49189277,87.289,87.263,0.45506432]
[1771081111493,0.49189277,87.289,87.256,11.93612025]
[1771081111695,0.49189277,87.289,87.247,0.47565277]
[1771081111900,0.49274331,87.279,87.247,0.47565277]
[1771081113303,11.4576411,87.278,87.248,11.46158078]
[1771081113496,0.49274331,87.277,87.248,11.46158078]
[1771081114289,0.49274331,87.277,87.249,0.47565277]
[1771081115214,0.49274331,87.269,87.237,11.46289729]
[1771081115591,40.10174385,87.278,87.238,0.47565277]
[1771081115592,0.49274331,87.267,87.238,0.47565277]
[1771081116813,0.49274331,87.281,87.251,0.47565277]
[1771081117595,0.49274331,87.281,87.253,0.47565277]
[1771081117596,11.45737855,87.28,87.253,0.47565277]
[1771081118509,0.49274331,87.292,87.261,0.47565277]
[1771081120914,0.49274331,87.292,87.263,0.47565277]
[1771081121094,11.45519401,87.297,87.271,0.47565277]
[1771081122108,0.79699999,87.311,87.281,0.47565277]
[1771081122805,0.79699999,87.311,87.29,7.82208796]
[1771081122995,0.79699999,87.311,87.291,0.47565277]
[1771081123192,11.45118003,87.328,87.301,0.47565277]
[1771081123395,11.45118003,87.328,87.31,7.34643519]
[1771081123610,11.45118003,87.328,87.301,0.47565277]
[1771081124211,11.95118003,87.328,87.301,0.47565277]
[1771081124413,0.5,87.327,87.301,0.47565277]
[1771081124611,0.5,87.327,87.3,7.34643519]
[1771081125301,0.5,87.325,87.3,7.34643519]
[1771081126207,0.5,87.325,87.301,11.45462251]
[1771081126408,0.5,87.325,87.282,28.64279003]
[1771081126409,0.5,87.325,87.29,7.34643519]
[1771081126797,0.5,87.325,87.283,11.45698475]
[1771081127014,40.07970134,87.326,87.28,7.34643519]
[1771081127015,0.5,87.319,87.28,7.34643519]
[1771081127531,0.5,87.309,87.273,11.45820937]
[1771081129220,0.5,87.307,87.28,7.34643519]
[1771081129717,0.5,87.314,87.264,5.36086188]
[1771081129898,0.5,87.314,87.28,7.34643519]
[1771081130909,0.5,87.312,87.28,7.34643519]
[1771081131211,0.5,87.312,87.27,7.34643519]
[1771081131716,0.5,87.309,87.271,11.45856011]
[1771081133021,0.5,87.309,87.28,7.34643519]
[1771081134218,11.45370412,87.308,87.28,18.80371674]
[1771081134427,0.5,87.307,87.27,7.34643519]
[1771081136017,11.95318431,87.312,87.29,7.34643519]
[1771081137537,0.5,87.312,87.291,11.45593474]
[1771081138925,0.5,87.327,87.3,7.34643519]
[1771081139223,0.5,87.327,87.291,11.45593474]
[1771081140728,0.5,87.325,87.29,7.34643519]
[1771081141319,0.5,87.319,87.275,11.45797377]
[1771081141519,0.5,87.309,87.264,11.45947928]
[1771081141827,40.07970134,87.326,87.261,11.45987325]
[1771081141828,0.5,87.299,87.261,11.45987325]
[1771081142209,0.5,87.299,87.27,7.34643519]
[1771081142917,0.5,87.299,87.271,11.45856011]
[1771081143122,0.5,87.308,87.28,7.34643519]
[1771081144719,0.5,87.308,87.29,7.34643519]
[1771081145041,0.5,87.308,87.281,11.45724728]
[1771081145331,0.5,87.323,87.3,7.35037055]
[1771081145525,0.5,87.323,87.29,7.35037055]
[1771081146227,28.62547219,87.335,87.291,11.45593474]
[1771081146228,0.5,87.321,87.291,11.45593474]
[1771081146633,0.5,87.33,87.31,7.35037055]
[1771081147014,0.5,87.33,87.31,2.93835437]
[1771081148932,11.45094985,87.329,87.31,2.93835437]
[1771081150616,0.5,87.328,87.3,2.93835437]
[1771081150816,0.5,87.328,87.29,2.93835437]
[1771081151010,0.5,87.328,87.27,57.66]
[1771081151011,0.5,87.328,87.3,2.93835437]
[1771081151331,0.5,87.328,87.31,2.93835437]
[1771081151511,0.5,87.328,87.3,2.93835437]
[1771081152617,0.5,87.326,87.3,2.93835437]
[1771081154034,0.5,87.326,87.29,2.93835437]
[1771081154425,0.5,87.326,87.3,2.93835437]
[1771081154733,11.45147437,87.325,87.3,2.93835437]
[1771081154936,0.5,87.324,87.284,11.45685348]
[1771081155342,0.5,87.324,87.29,2.93835437]
[1771081156932,0.5,87.322,87.291,11.45593474]
[1771081160543,11.45199894,87.321,87.291,11.45593474]
[1771081160734,11.95199894,87.321,87.291,11.45593474]
[1771081161240,0.5,87.32,87.28,2.93835437]
[1771081161547,0.5,87.32,87.29,2.93835437]
[1771081162428,0.5,87.318,87.28,2.93835437]
[1771081163143,0.5,87.299,87.261,11.45987325]
[1771081165253,0.5,87.297,87.261,11.45987325]
[1771081168136,0.5,87.295,87.261,11.45987325]
[1771081170445,0.5,87.293,87.253,28.65224381]
[1771081171040,0.5,87.293,87.25,2.93835437]
[1771081172571,0.5,87.291,87.251,11.46118669]
[1771081174139,0.5,87.291,87.251,40.11415341]
[1771081174346,0.5,87.291,87.26,2.93835437]
[1771081174745,0.5,87.289,87.261,11.45987325]
[1771081176957,0.5,87.287,87.261,11.45987325]
[1771081178035,0.5,87.279,87.248,61.9]
[1771081178249,0.5,87.279,87.24,2.93835437]
[1771081179443,0.5,87.277,87.247,11.46169743]
[1771081179646,0.5,87.269,87.241,68.98243086]
[1771081179958,0.5,87.269,87.241,11.46243086]
[1771081180462,0.5,87.269,87.237,11.46300561]
[1771081181842,0.5,87.267,87.237,11.46300561]
[1771081182946,0.5,87.267,87.236,7.70101162]
[1771081183146,0.5,87.267,87.237,11.463026]
[1771081185765,0.5,87.265,87.236,7.70101162]
[1771081187950,0.5,87.269,87.24,2.93835437]
[1771081190662,0.5,87.267,87.237,11.463026]
[1771081192869,0.5,87.265,87.237,11.463026]
[1771081193251,11.45921664,87.266,87.238,0.49365451]
[1771081193877,56.74,87.276,87.238,0.49365451]
[1771081194058,11.45803494,87.275,87.238,0.49365451]
[1771081194256,2.93835437,87.27,87.238,0.49365451]
[1771081194463,11.45803494,87.275,87.238,0.49365451]
[1771081194772,2.93835437,87.27,87.238,0.49365451]
[1771081194972,11.45882272,87.269,87.24,0.49365451]
[1771081195268,0.4577002,87.268,87.24,0.49365451]
[1771081195873,0.4577002,87.279,87.241,0.49365451]
[1771081196062,2.93835437,87.27,87.241,0.49365451]
[1771081196253,0.4577002,87.269,87.241,0.49365451]
[1771081196976,0.4577002,87.267,87.242,11.46236904]
[1771081197357,0.4577002,87.267,87.237,11.463026]
[1771081198252,0.4577002,87.259,87.237,11.463026]
[1771081198457,0.4577002,87.259,87.238,0.49365451]
[1771081198662,0.4577002,87.269,87.238,0.49365451]
[1771081199782,0.4577002,87.275,87.241,0.49365451]
[1771081200283,0.4577002,87.273,87.241,0.49365451]
[1771081201490,0.47672915,87.269,87.239,11.46276321]
[1771081202383,0.47672915,87.269,87.241,0.49221332]
[1771081203583,0.47672915,87.267,87.241,0.49221332]
[1771081203985,0.47672915,87.267,87.242,11.46236904]
[1771081204288,0.47672915,87.259,87.236,4.42166113]
[1771081204583,0.47672915,87.259,87.228,11.46413184]
[1771081204584,0.47672915,87.249,87.228,11.95634516]
[1771081204778,0.47672915,87.249,87.228,0.49221332]
[1771081205167,0.47672915,87.249,87.218,0.49221332]
[1771081205367,2.94505243,87.24,87.218,0.49221332]
[1771081205681,40.10725825,87.266,87.197,5.47837411]
[1771081205682,0.47672915,87.229,87.197,5.47837411]
[1771081205898,2.94505243,87.21,87.191,0.5]
[1771081206060,4.61729252,87.245,87.176,19.38396818]
[1771081206061,2.94505243,87.2,87.184,0.5]
[1771081206561,11.4668379,87.208,87.184,0.5]
[1771081206781,2.94505243,87.23,87.192,0.5]
[1771081206981,31.60184047,87.24,87.192,0.5]
[1771081207282,31.60184047,87.24,87.19,0.2]
[1771081207283,2.94505243,87.21,87.19,0.2]
[1771081208076,2.94505243,87.23,87.192,0.5]
[1771081208277,56.72,87.229,87.192,0.5]
[1771081209385,56.74,87.228,87.194,0.5]
[1771081209564,56.29605432,87.228,87.201,0.5]
[1771081209961,56.29605432,87.228,87.2,2.94505243]
[1771081209962,47.14683164,87.241,87.211,0.5]
[1771081210262,56.74,87.238,87.211,0.5]
[1771081211073,14.40768425,87.24,87.211,0.5]
[1771081211287,11.46289461,87.238,87.211,0.5]
[1771081211469,11.46289461,87.238,87.212,11.46631197]
[1771081211667,56.78,87.239,87.213,0.5]
[1771081212185,47.14683164,87.241,87.213,0.5]
[1771081212386,56.82,87.24,87.213,0.5]
[1771081212887,68.28263182,87.24,87.213,0.5]
[1771081213385,2.94505243,87.23,87.203,0.5]
[1771081213570,2.94505243,87.23,87.192,0.5]
[1771081214476,56.88,87.229,87.192,0.5]
[1771081214675,56.88,87.229,87.19,0.2]
[1771081214676,2.94505243,87.22,87.19,0.2]
[1771081214878,56.88,87.228,87.19,0.2]
[1771081215085,2.94505243,87.21,87.19,0.2]
[1771081215290,56.88,87.228,87.19,0.2]
[1771081215291,11.46539171,87.219,87.19,0.2]
[1771081216185,40.12887099,87.219,87.19,0.2]
[1771081216389,2.94505243,87.21,87.19,0.2]
[1771081216591,40.12887099,87.219,87.19,0.2]
[1771081217192,2.94505243,87.21,87.19,0.2]
[1771081217386,68.38670641,87.209,87.19,0.2]
[1771081218488,2.94505243,87.2,87.19,0.2]
[1771081219999,56.96,87.199,87.19,0.2]
[1771081221192,56.96,87.199,87.19,1e-08]
[1771081221782,11.46577381,87.217,87.191,0.5]
[1771081222097,2.94505243,87.21,87.191,0.5]
[1771081223099,2.94505243,87.21,87.19,1e-08]
[1771081224207,2.94505243,87.2,87.176,0.5]
[1771081226306,11.46802142,87.199,87.169,0.5]
[1771081227082,2.94505243,87.19,87.161,11.97289129]
[1771081227290,57.04,87.189,87.161,0.5]
[1771081227806,2.94505243,87.18,87.161,0.5]
[1771081228002,57.02,87.179,87.161,0.5]
[1771081228684,11.47078391,87.178,87.16,0.7]
[1771081229287,2.94505243,87.19,87.161,0.5]
[1771081229482,11.46670641,87.209,87.171,0.5]
[1771081229687,31.90616525,87.215,87.181,0.5]
[1771081229888,57.04,87.214,87.181,0.5]
[1771081231483,11.4661805,87.213,87.182,11.47025762]
[1771081231708,11.4661805,87.213,87.183,0.5]
[1771081232110,11.4661805,87.213,87.162,0.5]
[1771081232111,2.94505243,87.21,87.162,0.5]
[1771081232314,2.94505243,87.2,87.162,0.5]
[1771081232521,2.94505243,87.19,87.163,0.5]
[1771081232806,40.13163175,87.213,87.163,0.5]
[1771081232807,57.08,87.189,87.163,0.5]
[1771081234408,57.08,87.189,87.16,3.14505243]
[1771081234409,57.08,87.189,87.165,0.5]
[1771081236108,2.94505243,87.21,87.171,0.5]
[1771081236320,2.94505243,87.21,87.171,0.47509413]
[1771081236498,57.08,87.209,87.171,0.47509413]
[1771081237016,57.08,87.211,87.191,0.47509413]
[1771081237307,2.94505243,87.21,87.173,0.47509413]
[1771081238909,11.46670641,87.209,87.174,11.47131025]
[1771081239115,11.46670641,87.209,87.175,0.47509413]
[1771081239315,2.94505243,87.21,87.175,0.47509413]
[1771081239910,57.08,87.211,87.181,0.47509413]
[1771081241122,25.5249322,87.221,87.191,0.48558855]
[1771081241323,82.6449322,87.221,87.191,0.48558855]
[1771081241690,82.6449322,87.221,87.182,40.14590167]
[1771081241691,0.48891239,87.237,87.201,0.48558855]
[1771081241889,57.12,87.236,87.201,0.48558855]
[1771081242399,57.12,87.237,87.201,0.48558855]
[1771081242799,0.48891239,87.229,87.193,0.48558855]
[1771081243023,0.48891239,87.229,87.201,0.48558855]
[1771081243221,0.48891239,87.237,87.203,0.48558855]
[1771081243413,57.12,87.236,87.203,0.48558855]
[1771081243714,0.48891239,87.229,87.202,11.46762688]
[1771081245720,0.48891239,87.228,87.196,0.48558855]
[1771081246014,0.48891239,87.228,87.195,11.4685475]
[1771081247906,0.48891239,87.226,87.19,0.48558855]
[1771081248606,57.12,87.225,87.19,0.48558855]
[1771081248811,0.48891239,87.224,87.19,0.48558855]
[1771081249422,0.48891239,87.219,87.19,0.48558855]
[1771081250028,0.48891239,87.217,87.191,11.46907364]
[1771081250607,0.48891239,87.222,87.192,0.48558855]
[1771081250822,0.48891239,87.221,87.192,0.48558855]
[1771081251020,2.94505243,87.22,87.192,0.48558855]
[1771081251212,0.48891239,87.219,87.191,11.46907364]
[1771081251711,0.48891239,87.219,87.183,11.47004703]
[1771081251909,11.46552317,87.218,87.186,0.48558855]
[1771081252127,11.46552317,87.218,87.191,0.48558855]
[1771081252315,68.58496933,87.223,87.191,0.48558855]
[1771081252515,57.14,87.222,87.191,0.48558855]
[1771081253222,0.48891239,87.249,87.211,0.48558855]
[1771081253422,0.48891239,87.247,87.211,0.48558855]
[1771081253621,0.48891239,87.247,87.221,0.48558855]
[1771081253822,57.62891239,87.247,87.221,0.48558855]
[1771081254230,0.48891239,87.245,87.221,0.48558855]
[1771081254430,0.48891239,87.245,87.217,11.46560186]
[1771081255829,0.48891239,87.245,87.21,11.46652159]
[1771081256015,0.48891239,87.239,87.21,11.46652159]
[1771081256330,0.48891239,87.238,87.21,14.89716257]
[1771081256531,0.48891239,87.238,87.211,0.48558855]
[1771081257329,0.48891239,87.238,87.212,11.46631197]
[1771081257835,57.14,87.247,87.221,0.48558855]
[1771081258224,0.48891239,87.259,87.231,0.48558855]
[1771081258426,57.16,87.259,87.24,3.43064098]
[1771081258934,57.16,87.259,87.24,2.94505243]
[1771081259116,0.48891239,87.266,87.241,0.48558855]
[1771081259322,57.16,87.271,87.243,0.48558855]
[1771081260125,0.48891239,87.269,87.243,0.48558855]
[1771081262936,0.48891239,87.269,87.25,2.94505243]
[1771081263136,0.48891239,87.269,87.244,11.46210627]
[1771081263336,11.45895402,87.268,87.244,11.46210627]
[1771081263537,0.4720103,87.267,87.244,11.46210627]
[1771081263838,0.4720103,87.267,87.243,0.48558855]
[1771081264041,0.4720103,87.267,87.243,11.94779655]
[1771081264548,0.4720103,87.267,87.244,0.45783659]
[1771081265535,0.4720103,87.267,87.245,11.46197489]
[1771081265739,0.4720103,87.265,87.231,0.45783659]
[1771081265945,0.4720103,87.265,87.24,2.94505243]
[1771081266442,0.4720103,87.265,87.232,61.9]
[1771081267930,0.4720103,87.263,87.232,62.35783659]
[1771081268341,0.4720103,87.263,87.233,11.46355163]
[1771081268837,0.4720103,87.268,87.241,0.45783659]
[1771081269233,0.4720103,87.268,87.24,2.94405009]
[1771081269942,0.4720103,87.266,87.235,0.45783659]
[1771081270159,0.4720103,87.266,87.236,11.46315741]
[1771081271025,0.4720103,87.266,87.24,2.94405009]
[1771081271230,57.16,87.271,87.25,2.94405009]
[1771081271728,57.16,87.271,87.251,0.45783659]
[1771081271929,11.45869141,87.27,87.251,0.45783659]
[1771081272329,0.4720103,87.269,87.241,0.45783659]
[1771081272735,0.4720103,87.269,87.24,11.46255874]
[1771081274048,0.4720103,87.267,87.236,11.46315741]
[1771081274235,0.4720103,87.267,87.24,2.94405009]
[1771081274834,0.4720103,87.267,87.241,0.45783659]
[1771081277460,0.4720103,87.267,87.243,0.45783659]
[1771081277841,57.32,87.266,87.251,0.45783659]
[1771081278042,0.4720103,87.274,87.251,0.45783659]
[1771081278247,57.32,87.273,87.251,0.45783659]
[1771081279445,0.4720103,87.271,87.242,11.46236736]
[1771081280057,0.4720103,87.271,87.237,11.46291136]
[1771081280556,0.4720103,87.271,87.24,2.94405009]
[1771081280741,0.4720103,87.271,87.241,0.45783659]
[1771081281550,0.4720103,87.271,87.251,0.45783659]
[1771081281749,11.45869141,87.27,87.251,0.45783659]
[1771081281960,0.4720103,87.269,87.243,0.45783659]
[1771081283247,0.4720103,87.269,87.242,11.46236904]
[1771081283452,0.4720103,87.267,87.24,2.94405009]
[1771081283664,0.4720103,87.267,87.231,11.46370269]
[1771081283860,0.4720103,87.267,87.231,11.92153928]
[1771081284062,0.4720103,87.267,87.232,0.45783659]
[1771081285264,0.4720103,87.267,87.24,2.94405009]
[1771081285460,0.4720103,87.267,87.242,11.46236904]
[1771081285660,57.38,87.266,87.243,0.45783659]
[1771081286459,0.4720103,87.278,87.251,0.45783659]
[1771081286658,57.38,87.277,87.251,0.45783659]
[1771081286857,0.4720103,87.276,87.251,0.45783659]
[1771081287062,0.4720103,87.276,87.25,3.40188668]
[1771081287851,0.4720103,87.276,87.251,11.91902328]
[1771081288053,0.4720103,87.274,87.251,11.91902328]
[1771081288976,0.4720103,87.289,87.261,0.45783659]
[1771081289263,0.1,87.29,87.261,0.45783659]
[1771081289264,0.4720103,87.287,87.261,0.45783659]
[1771081289663,0.4720103,87.287,87.25,2.94405009]
[1771081289859,0.4720103,87.287,87.246,11.91961361]
[1771081289860,0.4720103,87.279,87.246,11.91961361]
[1771081291264,0.45589046,87.277,87.246,11.91961361]
[1771081291859,0.45589046,87.277,87.246,11.46177702]
[1771081292172,0.45589046,87.277,87.251,0.49844022]
[1771081292679,57.4,87.288,87.261,0.49844022]
[1771081292680,0.45589046,87.287,87.261,0.49844022]
[1771081292875,57.4,87.288,87.261,0.49844022]
[1771081293479,68.85633949,87.288,87.263,0.49844022]
[1771081293774,0.45589046,87.287,87.261,11.45987325]
[1771081293985,0.45589046,87.287,87.262,0.49844022]
[1771081294166,57.87589046,87.286,87.262,0.49844022]
[1771081294678,0.45589046,87.285,87.262,0.49844022]
[1771081295467,0.45589046,87.285,87.263,11.4596106]
[1771081296578,0.45589046,87.283,87.258,11.46025913]
[1771081297265,0.45589046,87.279,87.231,0.49844022]
[1771081297465,0.45589046,87.277,87.24,2.94405009]
[1771081297661,0.45589046,87.277,87.241,0.49844022]
[1771081298960,0.45589046,87.277,87.26,2.94405009]
[1771081299163,57.46,87.276,87.251,0.49844022]
[1771081299778,57.46,87.276,87.253,0.49844022]
[1771081300187,0.45589046,87.274,87.252,11.46105533]
[1771081302985,57.5,87.278,87.26,2.94405009]
[1771081303186,57.5,87.278,87.261,0.47713325]
[1771081307493,57.5,87.278,87.262,11.45974192]
[1771081309186,58.00472563,87.282,87.262,11.45974192]
[1771081309490,0.46472563,87.281,87.262,11.45974192]
[1771081309896,0.46472563,87.281,87.255,11.46066128]
[1771081310067,0.46472563,87.28,87.255,11.46066128]
[1771081310394,0.46472563,87.278,87.255,11.46066128]
[1771081311582,0.46472563,87.278,87.25,11.46121886]
[1771081312393,0.46472563,87.276,87.242,0.47713325]
[1771081312573,0.46472563,87.276,87.243,61.9]
[1771081314001,0.46472563,87.276,87.244,11.46210627]
[1771081314694,0.46472563,87.269,87.243,61.9]
[1771081315376,2.94405009,87.27,87.243,61.9]
[1771081315377,0.46472563,87.267,87.243,61.9]
[1771081316094,0.46472563,87.267,87.239,11.4626451]
[1771081317492,0.46472563,87.266,87.233,0.47713325]
[1771081317901,0.46472563,87.266,87.24,2.94405009]
[1771081318079,57.62,87.265,87.241,0.47713325]
[1771081318280,45.69590439,87.264,87.241,0.47713325]
[1771081319073,45.69590439,87.264,87.243,0.47713325]
[1771081319278,0.46472563,87.263,87.243,0.47713325]
[1771081320084,0.46472563,87.263,87.24,2.94405009]
[1771081320284,45.69590439,87.264,87.243,0.47713325]
[1771081320492,0.46472563,87.279,87.251,0.47713325]
[1771081320801,57.62,87.274,87.251,0.47713325]
[1771081321003,3.04405009,87.29,87.242,11.46236904]
[1771081321004,0.1,87.29,87.261,0.47713325]
[1771081321179,0.1,87.29,87.271,11.45856011]
[1771081321386,0.55879554,87.29,87.271,11.45856011]
[1771081322583,0.55879554,87.29,87.263,28.64902562]
[1771081323008,0.45879554,87.288,87.261,11.45987325]
[1771081323491,0.45879554,87.288,87.254,11.46072785]
[1771081323696,0.45879554,87.279,87.244,11.46210627]
[1771081324286,0.45879554,87.277,87.244,11.46210627]
[1771081324486,0.45879554,87.275,87.237,11.93177061]
[1771081324686,0.45879554,87.273,87.237,11.93177061]
[1771081325708,0.45879554,87.259,87.231,11.46376767]
[1771081326288,0.45879554,87.249,87.218,11.46552317]
[1771081326588,0.45879554,87.249,87.219,0.46874461]
[1771081327394,0.45879554,87.247,87.219,0.46874461]
[1771081328607,0.45879554,87.245,87.211,40.13255208]
[1771081329323,0.45879554,87.245,87.212,0.46874461]
[1771081330523,11.46061588,87.256,87.221,0.46874461]
[1771081330730,0.45879554,87.275,87.231,0.46874461]
[1771081331030,58.01879554,87.265,87.24,2.94545524]
[1771081331232,0.45879554,87.265,87.241,0.46874461]
[1771081331600,0.45879554,87.274,87.241,0.46874461]
[1771081331801,0.55879554,87.29,87.26,2.94545524]
[1771081332039,0.45879554,87.288,87.25,2.94545524]
[1771081332327,0.45879554,87.288,87.25,3.41419985]
[1771081332802,0.45879554,87.279,87.242,11.46236904]
[1771081333326,2.94545524,87.27,87.237,11.46300978]
[1771081333526,2.94545524,87.27,87.233,0.46874461]
[1771081333527,0.45879554,87.269,87.233,0.46874461]
[1771081333706,0.45879554,87.269,87.234,11.46342022]
[1771081334829,0.45879554,87.267,87.234,11.46342022]
[1771081336523,0.45879554,87.265,87.235,0.46874461]
[1771081336821,0.45879554,87.265,87.241,0.46874461]
[1771081337122,0.45879554,87.289,87.241,0.46874461]
[1771081337301,0.45879554,87.289,87.234,11.46342022]
[1771081337302,0.45879554,87.288,87.251,0.46874461]
[1771081338000,0.45879554,87.288,87.26,2.94545524]
[1771081338200,0.45879554,87.288,87.26,3.41419985]
[1771081338429,0.45879554,87.288,87.252,0.46874461]
[1771081339315,0.45879554,87.286,87.254,0.46874461]
[1771081340017,0.45879554,87.286,87.248,11.93019767]
[1771081340204,0.45879554,87.286,87.25,3.41419985]
[1771081340401,0.45879554,87.286,87.251,0.46874461]
[1771081341202,0.45879554,87.286,87.247,28.65428037]
[1771081341203,0.45879554,87.286,87.262,11.45974192]
[1771081341407,0.45879554,87.286,87.263,0.46874461]
[1771081341704,0.1,87.29,87.263,0.46874461]
[1771081342228,0.1,87.29,87.27,2.94545524]
[1771081342735,0.1,87.29,87.271,0.46874461]
[1771081343216,0.1,87.29,87.25,2.94545524]
[1771081343217,0.45879554,87.309,87.281,11.45724728]
[1771081343422,0.45879554,87.309,87.282,0.4]
[1771081343826,11.45181242,87.323,87.291,0.4]
[1771081344127,0.45879554,87.332,87.301,0.4]
[1771081344913,57.23812733,87.355,87.301,0.4]
[1771081344914,0.45879554,87.362,87.321,0.4]
[1771081345112,0.55879554,87.38,87.35,2.94545524]
[1771081345315,0.45879554,87.396,87.371,11.44544528]
[1771081345625,0.45879554,87.396,87.371,11.30868988]
[1771081346009,0.45879554,87.396,87.38,2.94545524]
[1771081346216,0.45879554,87.396,87.35,2.94545524]
[1771081346411,0.45879554,87.389,87.351,0.2]
[1771081346630,0.45879554,87.389,87.37,2.94545524]
[1771081346930,0.45879554,87.389,87.37,7.33640554]
[1771081347308,11.44073129,87.407,87.37,18.78187059]
[1771081347754,11.44073129,87.407,87.371,0.46874461]
[1771081347933,11.44073129,87.407,87.38,7.33640554]
[1771081348832,11.44001769,87.413,87.38,7.33640554]
[1771081349022,11.44001769,87.413,87.378,0.46874461]
[1771081349228,0.45879554,87.41,87.38,7.33640554]
[1771081349524,0.45879554,87.41,87.381,11.44413545]
[1771081349725,0.45879554,87.418,87.39,7.33640554]
[1771081351132,0.45879554,87.416,87.382,0.46874461]
[1771081351327,0.45879554,87.416,87.363,57.68]
[1771081351328,0.45879554,87.416,87.39,7.33640554]
[1771081351832,0.45879554,87.416,87.4,7.33640554]
[1771081352325,0.45879554,87.416,87.381,88.45005858]
[1771081352326,0.45879554,87.416,87.39,7.33640554]
[1771081352529,0.45879554,87.416,87.4,7.33640554]
[1771081352726,0.47019047,87.427,87.4,7.33640554]
[1771081353334,0.47019047,87.419,87.391,0.45661687]
[1771081353531,0.47019047,87.419,87.4,7.33640554]
[1771081355035,0.47019047,87.419,87.39,7.33640554]
[1771081355616,0.47019047,87.419,87.391,11.44282592]
[1771081356331,0.47019047,87.417,87.39,7.79302241]
[1771081356532,0.47019047,87.417,87.391,11.44282592]
[1771081358325,0.47019047,87.417,87.4,7.33640554]
[1771081358634,0.47019047,87.417,87.391,11.44282592]
[1771081359818,0.47019047,87.416,87.382,61.9]
[1771081360014,7.33640554,87.42,87.382,11.44400448]
[1771081360015,11.43968426,87.415,87.382,11.44400448]
[1771081360246,0.47019047,87.414,87.382,11.44400448]
[1771081360534,0.47019047,87.414,87.39,7.33640554]
[1771081360741,0.48436077,87.42,87.391,0.45720388]
[1771081360935,0.48436077,87.42,87.39,7.33640554]
[1771081361333,0.48436077,87.419,87.381,88.45005858]
[1771081361842,0.48436077,87.419,87.382,11.44400448]
[1771081362419,0.48436077,87.417,87.381,88.45005858]
[1771081362629,0.48436077,87.417,87.382,11.44400448]
[1771081362830,0.48436077,87.417,87.381,88.45005858]
[1771081363122,0.48436077,87.417,87.382,11.44400448]
[1771081363919,0.48436077,87.409,87.381,88.45005858]
[1771081364538,7.33640554,87.4,87.381,29.73353731]
[1771081364725,11.4406004,87.408,87.381,30.23353731]
[1771081364926,57.42,87.407,87.382,0.5]
[1771081366440,11.44086218,87.406,87.382,0.5]
[1771081369231,57.56,87.405,87.381,29.73353731]
[1771081369825,57.56,87.405,87.383,0.5]
[1771081370026,57.56,87.405,87.382,11.44400448]
[1771081370027,2.93405353,87.44,87.401,0.5]
[1771081370342,2.93405353,87.43,87.392,0.5]
[1771081371337,4.61729252,87.463,87.39,2.93405353]
[1771081371338,69.01785242,87.429,87.394,0.5]
[1771081371543,69.01785242,87.429,87.401,0.5]
[1771081372544,69.01785242,87.429,87.39,2.93405353]
[1771081372545,69.01785242,87.429,87.391,0.5]
[1771081372847,2.93405353,87.41,87.381,29.73353731]
[1771081373053,2.93405353,87.41,87.381,30.23353731]
[1771081373262,2.93405353,87.42,87.382,0.5]
[1771081373427,97.61706287,87.419,87.383,0.5]
[1771081373827,97.61706287,87.419,87.383,11.94387352]
[1771081374057,2.93405353,87.41,87.384,0.5]
[1771081374550,97.61706287,87.419,87.384,0.5]
[1771081374748,2.93405353,87.41,87.384,0.5]
[1771081375858,2.93405353,87.41,87.381,29.73353731]
[1771081375859,97.61706287,87.419,87.385,11.4436116]
[1771081376432,97.61706287,87.419,87.386,0.5]
[1771081377729,2.93405353,87.41,87.386,0.5]
[1771081378648,97.61706287,87.419,87.386,0.5]